[Event "Titled Tuesday Blitz March 21 Early 2023"]
[White "Gubajdullin, Alexei"]
[Black "lolliNOPE"]
[WhiteFideId "4141202"]
[WhiteElo "2267"]
[BlackElo "2017"]
[Result "1/2-1/2"]
[Round "02"]
[TimeControl "180+2"]
[Date "2023.03.21"]
[WhiteClock "0:00:21"]
[BlackClock "0:00:17"]

1. d4 {[%clk 0:02:59]}  Nf6 {[%clk 0:02:59]} 2. Nf3 {[%clk 0:02:58]}  d5 {[%clk 0:03:00]} 3. Bf4 {[%clk 0:02:59]}  e6 {[%clk 0:03:00]} 4. e3 {[%clk 0:02:59]}  Bd6 {[%clk 0:03:01]} 5. Bg3 {[%clk 0:02:59]}  c5 {[%clk 0:03:01]} 6. Nbd2 {[%clk 0:02:58]}  O-O {[%clk 0:03:01]} 7. c3 {[%clk 0:02:58]}  Qc7 {[%clk 0:03:01]} 8. Ne5 {[%clk 0:02:57]}  Nbd7 {[%clk 0:02:58]} 9. f4 {[%clk 0:02:57]}  b6 {[%clk 0:02:56]} 10. Bd3 {[%clk 0:02:56]}  Bb7 {[%clk 0:02:53]} 11. Qf3 {[%clk 0:02:56]}  a6 {[%clk 0:02:43]} 12. Bh4 {[%clk 0:02:55]}  b5 {[%clk 0:02:31]} 13. g4 {[%clk 0:02:44]}  b4 {[%clk 0:02:25]} 14. Bxf6 {[%clk 0:02:39]}  Nxf6 {[%clk 0:02:23]} 15. g5 {[%clk 0:02:39]}  Bxe5 {[%clk 0:02:17]} 16. fxe5 {[%clk 0:02:38]}  Ne4 {[%clk 0:02:17]} 17. Nxe4 {[%clk 0:02:37]}  dxe4 {[%clk 0:02:15]} 18. Bxe4 {[%clk 0:02:35]}  Bxe4 {[%clk 0:02:16]} 19. Qxe4 {[%clk 0:02:36]}  bxc3 {[%clk 0:02:16]} 20. bxc3 {[%clk 0:02:36]}  Qa5 {[%clk 0:02:16]} 21. O-O {[%clk 0:02:29]}  cxd4 {[%clk 0:02:05]} 22. cxd4 {[%clk 0:02:29]}  Rab8 {[%clk 0:02:00]} 23. Rf2 {[%clk 0:02:28]}  Rb4 {[%clk 0:01:46]} 24. h4 {[%clk 0:02:25]}  Qb5 {[%clk 0:01:39]} 25. h5 {[%clk 0:02:24]}  Rb2 {[%clk 0:01:37]} 26. Raf1 {[%clk 0:02:21]}  Rxf2 {[%clk 0:01:33]} 27. Rxf2 {[%clk 0:02:21]}  Qa4 {[%clk 0:01:27]} 28. h6 {[%clk 0:02:18]}  Qd1+ {[%clk 0:01:24]} 29. Kg2 {[%clk 0:01:41]}  Qh5 {[%clk 0:01:18]} 30. Qf4 {[%clk 0:01:40]}  Qg6 {[%clk 0:01:04]} 31. hxg7 {[%clk 0:01:25]}  Rc8 {[%clk 0:00:54]} 32. Qf6 {[%clk 0:01:22]}  Rc1 {[%clk 0:00:37]} 33. Rb2 {[%clk 0:01:05]}  Rc2+ {[%clk 0:00:32]} 34. Rxc2 {[%clk 0:01:04]}  Qxc2+ {[%clk 0:00:33]} 35. Kg3 {[%clk 0:01:04]}  Qxa2 {[%clk 0:00:25]} 36. e4 {[%clk 0:00:42]}  Qd2 {[%clk 0:00:19]} 37. d5 {[%clk 0:00:35]}  exd5 {[%clk 0:00:19]} 38. Qd8+ {[%clk 0:00:33]}  Kxg7 {[%clk 0:00:19]} 39. Qf6+ {[%clk 0:00:29]}  Kg8 {[%clk 0:00:19]} 40. Qd8+ {[%clk 0:00:29]}  Kg7 {[%clk 0:00:19]} 41. exd5 {[%clk 0:00:23]}  Qe3+ {[%clk 0:00:18]} 42. Kg4 {[%clk 0:00:21]}  Qe4+ {[%clk 0:00:18]} 43. Kh3 {[%clk 0:00:20]}  Qf3+ {[%clk 0:00:14]} 44. Kh2 {[%clk 0:00:20]}  Qf2+ {[%clk 0:00:15]} 45. Kh1 {[%clk 0:00:20]}  Qf1+ {[%clk 0:00:15]} 46. Kh2 {[%clk 0:00:20]}  Qf2+ {[%clk 0:00:16]} 47. Kh3 {[%clk 0:00:21]}  Qf3+ {[%clk 0:00:16]} 48. Kh4 {[%clk 0:00:21]}  Qf4+ {[%clk 0:00:17]} 49. Kh3 {[%clk 0:00:21]}  Qf3+ {[%clk 0:00:17]} 1/2-1/2


[Site "https://www.chess.com"]

[Event "Titled Tuesday Blitz March 21 Early 2023"]
[White "Wahedi, Ahmad Siar"]
[Black "Wei, Yi"]
[WhiteFideId "4651260"]
[BlackFideId "8603405"]
[WhiteElo "2454"]
[BlackElo "2686"]
[Result "0-1"]
[Round "02"]
[TimeControl "180+2"]
[Date "2023.03.21"]
[WhiteClock "0:02:01"]
[BlackClock "0:02:20"]

1. e4 {[%clk 0:03:00]}  Nf6 {[%clk 0:02:56]} 2. e5 {[%clk 0:02:59]}  Nd5 {[%clk 0:02:56]} 3. Nf3 {[%clk 0:02:59]}  c5 {[%clk 0:02:55]} 4. c3 {[%clk 0:02:57]}  d6 {[%clk 0:02:53]} 5. d4 {[%clk 0:02:58]}  cxd4 {[%clk 0:02:53]} 6. cxd4 {[%clk 0:02:58]}  Nc6 {[%clk 0:02:54]} 7. exd6 {[%clk 0:02:57]}  e6 {[%clk 0:02:53]} 8. Nc3 {[%clk 0:02:56]}  Nxc3 {[%clk 0:02:53]} 9. bxc3 {[%clk 0:02:56]}  Bxd6 {[%clk 0:02:54]} 10. Bd3 {[%clk 0:02:56]}  h6 {[%clk 0:02:48]} 11. h3 {[%clk 0:02:56]}  O-O {[%clk 0:02:49]} 12. O-O {[%clk 0:02:55]}  b6 {[%clk 0:02:49]} 13. Qe2 {[%clk 0:02:50]}  Qc7 {[%clk 0:02:31]} 14. Qe4 {[%clk 0:02:38]}  f5 {[%clk 0:02:31]} 15. Qh4 {[%clk 0:02:38]}  Ne7 {[%clk 0:02:31]} 16. Bxh6 {[%clk 0:02:30]}  gxh6 {[%clk 0:02:27]} 17. Qxh6 {[%clk 0:02:31]}  Nd5 {[%clk 0:02:26]} 18. c4 {[%clk 0:02:18]}  Nf4 {[%clk 0:02:26]} 19. Bc2 {[%clk 0:02:09]}  Qg7 {[%clk 0:02:22]} 20. Qxg7+ {[%clk 0:02:08]}  Kxg7 {[%clk 0:02:22]} 21. Bb3 {[%clk 0:02:07]}  Bb7 {[%clk 0:02:22]} 22. Kh1 {[%clk 0:02:03]}  Rh8 {[%clk 0:02:20]} 23. Ng5 {[%clk 0:02:01]} 0-1


[Site "https://www.chess.com"]

[Event "Titled Tuesday Blitz March 21 Early 2023"]
[White "Erigaisi Arjun"]
[Black "Girsh, Daniel"]
[WhiteFideId "35009192"]
[BlackFideId "30949190"]
[WhiteElo "2737"]
[BlackElo "2075"]
[Result "1-0"]
[Round "02"]
[TimeControl "180+2"]
[Date "2023.03.21"]
[WhiteClock "0:00:22"]
[BlackClock "0:00:29"]

1. b3 {[%clk 0:03:00]}  d5 {[%clk 0:02:59]} 2. Bb2 {[%clk 0:03:00]}  Bf5 {[%clk 0:02:59]} 3. d3 {[%clk 0:02:59]}  e6 {[%clk 0:03:00]} 4. Nd2 {[%clk 0:02:57]}  Nf6 {[%clk 0:03:00]} 5. g3 {[%clk 0:02:58]}  Be7 {[%clk 0:02:59]} 6. Bg2 {[%clk 0:02:58]}  O-O {[%clk 0:03:00]} 7. e4 {[%clk 0:02:58]}  Bg6 {[%clk 0:02:58]} 8. a3 {[%clk 0:02:53]}  c5 {[%clk 0:02:56]} 9. e5 {[%clk 0:02:47]}  Nfd7 {[%clk 0:02:56]} 10. h4 {[%clk 0:02:47]}  h6 {[%clk 0:02:53]} 11. f4 {[%clk 0:02:39]}  f6 {[%clk 0:02:50]} 12. h5 {[%clk 0:02:31]}  Bf7 {[%clk 0:02:43]} 13. Ngf3 {[%clk 0:02:26]}  Nc6 {[%clk 0:02:42]} 14. Qe2 {[%clk 0:02:26]}  Qc7 {[%clk 0:02:33]} 15. O-O-O {[%clk 0:02:17]}  a5 {[%clk 0:02:28]} 16. g4 {[%clk 0:02:00]}  fxe5 {[%clk 0:02:23]} 17. g5 {[%clk 0:02:00]}  Nd4 {[%clk 0:02:17]} 18. Nxd4 {[%clk 0:01:55]}  exd4 {[%clk 0:02:18]} 19. g6 {[%clk 0:01:52]}  Qxf4 {[%clk 0:02:09]} 20. gxf7+ {[%clk 0:01:45]}  Qxf7 {[%clk 0:02:09]} 21. Rde1 {[%clk 0:01:38]}  e5 {[%clk 0:01:46]} 22. a4 {[%clk 0:01:27]}  Bg5 {[%clk 0:01:43]} 23. Kb1 {[%clk 0:01:26]}  Rae8 {[%clk 0:01:37]} 24. Nf3 {[%clk 0:01:25]}  Be3 {[%clk 0:01:35]} 25. Nh4 {[%clk 0:01:24]}  Qe6 {[%clk 0:01:22]} 26. Ref1 {[%clk 0:01:21]}  Nf6 {[%clk 0:01:15]} 27. Bh3 {[%clk 0:01:13]}  Qb6 {[%clk 0:01:12]} 28. Nf5 {[%clk 0:01:06]}  c4 {[%clk 0:01:01]} 29. dxc4 {[%clk 0:01:03]}  Ne4 {[%clk 0:00:54]} 30. Nxe3 {[%clk 0:00:48]}  dxe3 {[%clk 0:00:49]} 31. Rxf8+ {[%clk 0:00:42]}  Rxf8 {[%clk 0:00:48]} 32. cxd5 {[%clk 0:00:38]}  Ng3 {[%clk 0:00:44]} 33. Qg2 {[%clk 0:00:37]}  Nxh1 {[%clk 0:00:44]} 34. Bxe5 {[%clk 0:00:38]}  g5 {[%clk 0:00:29]} 35. Be6+ {[%clk 0:00:32]}  Rf7 {[%clk 0:00:24]} 36. Qxh1 {[%clk 0:00:32]}  e2 {[%clk 0:00:23]} 37. Bxf7+ {[%clk 0:00:32]}  Kf8 {[%clk 0:00:20]} 38. Bc3 {[%clk 0:00:17]}  Qf2 {[%clk 0:00:19]} 39. Qe4 {[%clk 0:00:15]}  Qxf7 {[%clk 0:00:19]} 40. Qxe2 {[%clk 0:00:15]}  Qxd5 {[%clk 0:00:19]} 41. Qf2+ {[%clk 0:00:13]}  Ke8 {[%clk 0:00:19]} 42. Qf6 {[%clk 0:00:13]}  Qh1+ {[%clk 0:00:18]} 43. Kb2 {[%clk 0:00:13]}  Qxh5 {[%clk 0:00:19]} 44. Qe6+ {[%clk 0:00:14]}  Kf8 {[%clk 0:00:18]} 45. Bxa5 {[%clk 0:00:14]}  Qf7 {[%clk 0:00:18]} 46. Qxh6+ {[%clk 0:00:14]}  Qg7+ {[%clk 0:00:18]} 47. Qxg7+ {[%clk 0:00:14]}  Kxg7 {[%clk 0:00:19]} 48. b4 {[%clk 0:00:13]}  g4 {[%clk 0:00:19]} 49. Bc7 {[%clk 0:00:13]}  Kf6 {[%clk 0:00:19]} 50. a5 {[%clk 0:00:14]}  Ke6 {[%clk 0:00:20]} 51. Kb3 {[%clk 0:00:14]}  Kd5 {[%clk 0:00:21]} 52. c4+ {[%clk 0:00:14]}  Kc6 {[%clk 0:00:21]} 53. Bg3 {[%clk 0:00:15]}  Kd7 {[%clk 0:00:20]} 54. b5 {[%clk 0:00:15]}  Kc8 {[%clk 0:00:21]} 55. Kb4 {[%clk 0:00:15]}  Kd7 {[%clk 0:00:20]} 56. Kc5 {[%clk 0:00:16]}  Kc8 {[%clk 0:00:21]} 57. Kb6 {[%clk 0:00:17]}  Kd7 {[%clk 0:00:21]} 58. Kxb7 {[%clk 0:00:17]}  Ke6 {[%clk 0:00:21]} 59. a6 {[%clk 0:00:18]}  Kf5 {[%clk 0:00:22]} 60. a7 {[%clk 0:00:19]}  Ke4 {[%clk 0:00:23]} 61. a8=Q {[%clk 0:00:19]}  Kf3 {[%clk 0:00:24]} 62. Qb8 {[%clk 0:00:19]}  Kg2 {[%clk 0:00:24]} 63. Qf4 {[%clk 0:00:19]}  Kh3 {[%clk 0:00:24]} 64. c5 {[%clk 0:00:20]}  Kg2 {[%clk 0:00:25]} 65. c6 {[%clk 0:00:21]}  Kh3 {[%clk 0:00:26]} 66. c7 {[%clk 0:00:21]}  Kg2 {[%clk 0:00:26]} 67. c8=Q {[%clk 0:00:21]}  Kh3 {[%clk 0:00:27]} 68. Qcxg4+ {[%clk 0:00:22]}  Kg2 {[%clk 0:00:28]} 69. Qf2+ {[%clk 0:00:22]}  Kh1 {[%clk 0:00:29]} 70. Qd1# {[%clk 0:00:22]} 1-0


[Site "https://www.chess.com"]

[Event "Titled Tuesday Blitz March 21 Early 2023"]
[White "Shvedova, Alexandra"]
[Black "Tsydypov, Zhamsaran"]
[WhiteFideId "54154782"]
[BlackFideId "4108566"]
[WhiteElo "2057"]
[BlackElo "2584"]
[Result "0-1"]
[Round "02"]
[TimeControl "180+2"]
[Date "2023.03.21"]
[WhiteClock "0:00:02"]
[BlackClock "0:00:51"]

1. Nf3 {[%clk 0:03:00]}  g6 {[%clk 0:02:55]} 2. d4 {[%clk 0:03:01]}  Bg7 {[%clk 0:02:55]} 3. e4 {[%clk 0:03:00]}  d6 {[%clk 0:02:55]} 4. Nc3 {[%clk 0:02:59]}  a6 {[%clk 0:02:55]} 5. Be3 {[%clk 0:02:54]}  b5 {[%clk 0:02:55]} 6. Bd3 {[%clk 0:02:54]}  Bb7 {[%clk 0:02:55]} 7. O-O {[%clk 0:02:52]}  Nd7 {[%clk 0:02:55]} 8. Qd2 {[%clk 0:02:48]}  c5 {[%clk 0:02:55]} 9. a3 {[%clk 0:02:41]}  c4 {[%clk 0:02:52]} 10. Be2 {[%clk 0:02:39]}  Ngf6 {[%clk 0:02:53]} 11. e5 {[%clk 0:02:29]}  Nd5 {[%clk 0:02:51]} 12. Nxd5 {[%clk 0:02:23]}  Bxd5 {[%clk 0:02:51]} 13. exd6 {[%clk 0:02:23]}  exd6 {[%clk 0:02:51]} 14. Bf4 {[%clk 0:02:11]}  Nf6 {[%clk 0:02:51]} 15. Qb4 {[%clk 0:02:11]}  Ne4 {[%clk 0:02:48]} 16. a4 {[%clk 0:02:06]}  Rb8 {[%clk 0:02:15]} 17. axb5 {[%clk 0:01:50]}  axb5 {[%clk 0:02:10]} 18. Ra6 {[%clk 0:01:33]}  Rb6 {[%clk 0:02:03]} 19. Rfa1 {[%clk 0:01:29]}  O-O {[%clk 0:02:01]} 20. c3 {[%clk 0:01:13]}  Re8 {[%clk 0:01:57]} 21. Bf1 {[%clk 0:01:12]}  Bf8 {[%clk 0:01:43]} 22. h3 {[%clk 0:01:09]}  Bc6 {[%clk 0:01:31]} 23. Qa5 {[%clk 0:00:55]}  Rxa6 {[%clk 0:01:28]} 24. Qxa6 {[%clk 0:00:56]}  Qc7 {[%clk 0:01:17]} 25. Qa7 {[%clk 0:00:42]}  Qc8 {[%clk 0:01:17]} 26. Rd1 {[%clk 0:00:30]}  Nf6 {[%clk 0:01:16]} 27. Bg5 {[%clk 0:00:27]}  Nd5 {[%clk 0:01:15]} 28. Qa1 {[%clk 0:00:21]}  h6 {[%clk 0:01:13]} 29. Bh4 {[%clk 0:00:20]}  Nf4 {[%clk 0:01:12]} 30. Bg3 {[%clk 0:00:21]}  Nxh3+ {[%clk 0:01:12]} 31. gxh3 {[%clk 0:00:21]}  Bxf3 {[%clk 0:01:12]} 32. Re1 {[%clk 0:00:22]}  Bc6 {[%clk 0:01:08]} 33. Qc1 {[%clk 0:00:20]}  Rxe1 {[%clk 0:01:03]} 34. Qxe1 {[%clk 0:00:19]}  Qa8 {[%clk 0:01:04]} 35. Qd2 {[%clk 0:00:10]}  Qa1 {[%clk 0:00:59]} 36. Bf4 {[%clk 0:00:06]}  Qb1 {[%clk 0:00:58]} 37. Bxh6 {[%clk 0:00:05]}  Qe4 {[%clk 0:00:58]} 38. f3 {[%clk 0:00:02]}  Qxf3 {[%clk 0:00:53]} 39. Bxf8 {[%clk 0:00:02]}  Kxf8 {[%clk 0:00:52]} 40. Kh2 {[%clk 0:00:02]}  Qxf1 {[%clk 0:00:51]} 0-1


[Site "https://www.chess.com"]

[Event "Titled Tuesday Blitz March 21 Early 2023"]
[White "Durarbayli, Vasif"]
[Black "Vivas Zamora, Fabian Ernesto"]
[WhiteFideId "13402935"]
[BlackFideId "3902480"]
[WhiteElo "2543"]
[BlackElo "2262"]
[Result "1-0"]
[Round "02"]
[TimeControl "180+2"]
[Date "2023.03.21"]
[WhiteClock "0:00:34"]
[BlackClock "0:00:02"]

1. e4 {[%clk 0:03:00]}  e5 {[%clk 0:02:59]} 2. Nf3 {[%clk 0:03:00]}  Nc6 {[%clk 0:02:59]} 3. d4 {[%clk 0:03:00]}  exd4 {[%clk 0:03:00]} 4. Nxd4 {[%clk 0:03:00]}  Nf6 {[%clk 0:03:01]} 5. Nxc6 {[%clk 0:03:00]}  bxc6 {[%clk 0:03:01]} 6. e5 {[%clk 0:03:01]}  Qe7 {[%clk 0:03:01]} 7. Qe2 {[%clk 0:03:02]}  Nd5 {[%clk 0:03:01]} 8. h4 {[%clk 0:03:02]}  f6 {[%clk 0:03:00]} 9. c4 {[%clk 0:02:55]}  Ba6 {[%clk 0:02:55]} 10. Rh3 {[%clk 0:02:54]}  Nb6 {[%clk 0:02:46]} 11. exf6 {[%clk 0:02:41]}  Qxe2+ {[%clk 0:02:46]} 12. Bxe2 {[%clk 0:02:41]}  Bxc4 {[%clk 0:02:43]} 13. Bxc4 {[%clk 0:02:38]}  Nxc4 {[%clk 0:02:42]} 14. b3 {[%clk 0:02:39]}  Nb6 {[%clk 0:02:18]} 15. Bb2 {[%clk 0:02:35]}  gxf6 {[%clk 0:02:11]} 16. Bxf6 {[%clk 0:02:36]}  Rg8 {[%clk 0:02:11]} 17. Kf1 {[%clk 0:02:23]}  Nd5 {[%clk 0:01:58]} 18. Bb2 {[%clk 0:02:13]}  O-O-O {[%clk 0:01:36]} 19. Rf3 {[%clk 0:01:59]}  Be7 {[%clk 0:01:16]} 20. g3 {[%clk 0:01:57]}  Rdf8 {[%clk 0:01:13]} 21. Nd2 {[%clk 0:01:52]}  Rxf3 {[%clk 0:01:09]} 22. Nxf3 {[%clk 0:01:53]}  Rf8 {[%clk 0:01:10]} 23. Kg2 {[%clk 0:01:47]}  Nb4 {[%clk 0:00:28]} 24. Bc3 {[%clk 0:01:33]}  c5 {[%clk 0:00:20]} 25. a3 {[%clk 0:01:27]}  Nd5 {[%clk 0:00:19]} 26. Bd2 {[%clk 0:01:18]}  d6 {[%clk 0:00:17]} 27. Ng5 {[%clk 0:01:15]}  h6 {[%clk 0:00:10]} 28. Ne4 {[%clk 0:01:05]}  h5 {[%clk 0:00:10]} 29. Rd1 {[%clk 0:00:59]}  Nf6 {[%clk 0:00:07]} 30. Nc3 {[%clk 0:00:46]}  Ng4 {[%clk 0:00:04]} 31. f3 {[%clk 0:00:46]}  Ne5 {[%clk 0:00:05]} 32. Bf4 {[%clk 0:00:45]}  Bf6 {[%clk 0:00:02]} 33. Ne4 {[%clk 0:00:36]}  Bg7 {[%clk 0:00:02]} 34. Rd5 {[%clk 0:00:34]} 1-0


[Site "https://www.chess.com"]

[Event "Titled Tuesday Blitz March 21 Early 2023"]
[White "Chigaev, Maksim"]
[Black "Bas Mas, Jose Joaquin"]
[WhiteFideId "4108116"]
[BlackFideId "22219064"]
[WhiteElo "2547"]
[BlackElo "2233"]
[Result "1-0"]
[Round "02"]
[TimeControl "180+2"]
[Date "2023.03.21"]
[WhiteClock "0:00:39"]
[BlackClock "0:00:16"]

1. e4 {[%clk 0:03:00]}  e6 {[%clk 0:02:59]} 2. d4 {[%clk 0:03:00]}  d5 {[%clk 0:02:59]} 3. Nd2 {[%clk 0:03:01]}  Nf6 {[%clk 0:02:58]} 4. e5 {[%clk 0:03:00]}  Nfd7 {[%clk 0:02:58]} 5. c3 {[%clk 0:03:00]}  c5 {[%clk 0:02:59]} 6. f4 {[%clk 0:03:01]}  Nc6 {[%clk 0:02:59]} 7. Ngf3 {[%clk 0:03:01]}  Qb6 {[%clk 0:02:57]} 8. Nb3 {[%clk 0:03:01]}  a5 {[%clk 0:02:55]} 9. a4 {[%clk 0:02:58]}  Be7 {[%clk 0:02:55]} 10. Be2 {[%clk 0:02:34]}  O-O {[%clk 0:02:53]} 11. O-O {[%clk 0:02:32]}  cxd4 {[%clk 0:02:33]} 12. cxd4 {[%clk 0:02:30]}  f6 {[%clk 0:02:34]} 13. Kh1 {[%clk 0:02:30]}  fxe5 {[%clk 0:01:59]} 14. fxe5 {[%clk 0:02:24]}  Rf7 {[%clk 0:01:58]} 15. Bd3 {[%clk 0:02:00]}  Nf8 {[%clk 0:01:51]} 16. Bg5 {[%clk 0:01:45]}  h6 {[%clk 0:01:47]} 17. Bxe7 {[%clk 0:01:43]}  Nxe7 {[%clk 0:01:47]} 18. Qc2 {[%clk 0:01:36]}  Bd7 {[%clk 0:01:44]} 19. Nc5 {[%clk 0:01:35]}  Rc8 {[%clk 0:01:27]} 20. Nh4 {[%clk 0:01:19]}  Be8 {[%clk 0:01:24]} 21. Rxf7 {[%clk 0:01:18]}  Bxf7 {[%clk 0:01:24]} 22. Rf1 {[%clk 0:01:18]}  Qb4 {[%clk 0:01:20]} 23. Qf2 {[%clk 0:01:17]}  Bh5 {[%clk 0:00:58]} 24. g4 {[%clk 0:01:16]}  Bg6 {[%clk 0:00:38]} 25. Nxg6 {[%clk 0:01:07]}  Nexg6 {[%clk 0:00:36]} 26. Nxe6 {[%clk 0:00:50]}  Nxe5 {[%clk 0:00:16]} 27. dxe5 {[%clk 0:00:42]}  Nxe6 {[%clk 0:00:16]} 28. Qf7+ {[%clk 0:00:39]} 1-0


[Site "https://www.chess.com"]

[Event "Titled Tuesday Blitz March 21 Early 2023"]
[White "Devaev, Alexander"]
[Black "Yeletsky, Ivan"]
[WhiteFideId "4169395"]
[BlackFideId "24180327"]
[WhiteElo "2225"]
[BlackElo "2414"]
[Result "0-1"]
[Round "02"]
[TimeControl "180+2"]
[Date "2023.03.21"]
[WhiteClock "0:00:02"]
[BlackClock "0:00:59"]

1. Nf3 {[%clk 0:03:00]}  c5 {[%clk 0:02:54]} 2. c4 {[%clk 0:03:00]}  Nf6 {[%clk 0:02:54]} 3. Nc3 {[%clk 0:03:00]}  d5 {[%clk 0:02:53]} 4. cxd5 {[%clk 0:03:00]}  Nxd5 {[%clk 0:02:54]} 5. e3 {[%clk 0:03:01]}  e6 {[%clk 0:02:44]} 6. Be2 {[%clk 0:02:45]}  Nc6 {[%clk 0:02:40]} 7. a3 {[%clk 0:02:45]}  Be7 {[%clk 0:02:38]} 8. O-O {[%clk 0:02:45]}  O-O {[%clk 0:02:38]} 9. Ne4 {[%clk 0:02:46]}  b6 {[%clk 0:02:33]} 10. Qc2 {[%clk 0:02:46]}  Bb7 {[%clk 0:02:33]} 11. d3 {[%clk 0:02:46]}  Rc8 {[%clk 0:02:33]} 12. Rb1 {[%clk 0:02:47]}  Qd7 {[%clk 0:02:26]} 13. Re1 {[%clk 0:02:47]}  f5 {[%clk 0:02:25]} 14. Ng3 {[%clk 0:02:46]}  e5 {[%clk 0:02:23]} 15. Bf1 {[%clk 0:02:42]}  Kh8 {[%clk 0:02:15]} 16. b3 {[%clk 0:02:42]}  Bd6 {[%clk 0:02:14]} 17. Bb2 {[%clk 0:02:39]}  Bb8 {[%clk 0:02:09]} 18. Nd2 {[%clk 0:02:28]}  f4 {[%clk 0:02:09]} 19. Nge4 {[%clk 0:02:28]}  fxe3 {[%clk 0:02:08]} 20. fxe3 {[%clk 0:02:28]}  Qe6 {[%clk 0:02:04]} 21. Nf3 {[%clk 0:02:28]}  Qg6 {[%clk 0:01:59]} 22. Kh1 {[%clk 0:02:21]}  Rf7 {[%clk 0:01:55]} 23. Qf2 {[%clk 0:02:02]}  Rcf8 {[%clk 0:01:53]} 24. Qg3 {[%clk 0:02:02]}  Qxg3 {[%clk 0:01:51]} 25. Nxg3 {[%clk 0:02:03]}  h6 {[%clk 0:01:47]} 26. Ne4 {[%clk 0:01:35]}  a5 {[%clk 0:01:45]} 27. Kg1 {[%clk 0:01:30]}  Nde7 {[%clk 0:01:45]} 28. Nfd2 {[%clk 0:01:25]}  Nf5 {[%clk 0:01:40]} 29. Nc4 {[%clk 0:01:24]}  Bc7 {[%clk 0:01:40]} 30. Bc3 {[%clk 0:01:16]}  b5 {[%clk 0:01:28]} 31. Ncd2 {[%clk 0:01:14]}  Bb6 {[%clk 0:01:28]} 32. Kh1 {[%clk 0:00:46]}  c4 {[%clk 0:01:23]} 33. bxc4 {[%clk 0:00:45]}  b4 {[%clk 0:01:24]} 34. axb4 {[%clk 0:00:41]}  axb4 {[%clk 0:01:25]} 35. Bxb4 {[%clk 0:00:27]}  Nxb4 {[%clk 0:01:26]} 36. Rxb4 {[%clk 0:00:28]}  Bxe3 {[%clk 0:01:26]} 37. Rbb1 {[%clk 0:00:22]}  Bc6 {[%clk 0:01:17]} 38. Nf3 {[%clk 0:00:19]}  Bd4 {[%clk 0:01:12]} 39. Nxd4 {[%clk 0:00:17]}  Nxd4 {[%clk 0:01:13]} 40. Rbd1 {[%clk 0:00:15]}  Bxe4 {[%clk 0:01:11]} 41. dxe4 {[%clk 0:00:15]}  Rf2 {[%clk 0:01:11]} 42. Kg1 {[%clk 0:00:15]}  h5 {[%clk 0:01:07]} 43. Rc1 {[%clk 0:00:10]}  Nb3 {[%clk 0:01:04]} 44. Rc3 {[%clk 0:00:05]}  Nc5 {[%clk 0:01:04]} 45. h3 {[%clk 0:00:03]}  R2f4 {[%clk 0:01:00]} 46. Rce3 {[%clk 0:00:03]}  g6 {[%clk 0:01:01]} 47. Bd3 {[%clk 0:00:01]}  Rd8 {[%clk 0:01:00]} 48. Bc2 {[%clk 0:00:01]}  Rd2 {[%clk 0:01:00]} 49. R3e2 {[%clk 0:00:02]}  Rd4 {[%clk 0:00:59]} 0-1


[Site "https://www.chess.com"]

[Event "Titled Tuesday Blitz March 21 Early 2023"]
[White "Perez Ponsa, Federico"]
[Black "Dinu, Dumitru-Daniel"]
[WhiteFideId "117927"]
[BlackFideId "1208403"]
[WhiteElo "2592"]
[BlackElo "2240"]
[Result "1-0"]
[Round "02"]
[TimeControl "180+2"]
[Date "2023.03.21"]
[WhiteClock "0:01:08"]
[BlackClock "0:00:12"]

1. d4 {[%clk 0:02:58]}  Nf6 {[%clk 0:02:59]} 2. c4 {[%clk 0:02:58]}  e6 {[%clk 0:02:59]} 3. Nc3 {[%clk 0:02:59]}  Bb4 {[%clk 0:02:59]} 4. Qc2 {[%clk 0:02:59]}  O-O {[%clk 0:02:58]} 5. a3 {[%clk 0:02:57]}  Bxc3+ {[%clk 0:02:57]} 6. Qxc3 {[%clk 0:02:57]}  d5 {[%clk 0:02:58]} 7. Nf3 {[%clk 0:02:46]}  dxc4 {[%clk 0:02:56]} 8. Qxc4 {[%clk 0:02:45]}  b6 {[%clk 0:02:57]} 9. Bg5 {[%clk 0:02:43]}  Ba6 {[%clk 0:02:52]} 10. Qa4 {[%clk 0:02:43]}  h6 {[%clk 0:02:48]} 11. Bh4 {[%clk 0:02:40]}  Bb7 {[%clk 0:02:42]} 12. e3 {[%clk 0:02:38]}  Nbd7 {[%clk 0:02:30]} 13. Be2 {[%clk 0:02:27]}  Qe7 {[%clk 0:02:13]} 14. O-O {[%clk 0:02:26]}  c5 {[%clk 0:02:13]} 15. Rac1 {[%clk 0:02:25]}  cxd4 {[%clk 0:02:10]} 16. Nxd4 {[%clk 0:02:21]}  Nc5 {[%clk 0:02:03]} 17. Qc2 {[%clk 0:02:08]}  Rac8 {[%clk 0:01:59]} 18. b4 {[%clk 0:02:04]}  Nce4 {[%clk 0:01:46]} 19. Qb2 {[%clk 0:02:04]}  g5 {[%clk 0:01:23]} 20. Bg3 {[%clk 0:02:02]}  Nxg3 {[%clk 0:01:22]} 21. hxg3 {[%clk 0:02:03]}  Rfd8 {[%clk 0:01:23]} 22. Bf3 {[%clk 0:01:50]}  Bxf3 {[%clk 0:01:20]} 23. Nxf3 {[%clk 0:01:51]}  Nd5 {[%clk 0:01:11]} 24. b5 {[%clk 0:01:45]}  Rxc1 {[%clk 0:00:39]} 25. Rxc1 {[%clk 0:01:38]}  Qb7 {[%clk 0:00:36]} 26. e4 {[%clk 0:01:30]}  Ne7 {[%clk 0:00:32]} 27. Qf6 {[%clk 0:01:28]}  g4 {[%clk 0:00:20]} 28. Ne5 {[%clk 0:01:25]}  Rf8 {[%clk 0:00:18]} 29. Nxg4 {[%clk 0:01:20]}  Ng6 {[%clk 0:00:13]} 30. Nxh6+ {[%clk 0:01:17]}  Kh7 {[%clk 0:00:12]} 31. Nf5 {[%clk 0:01:08]}  exf5 {[%clk 0:00:12]} 32. exf5 {[%clk 0:01:09]}  Qe7 {[%clk 0:00:12]} 33. fxg6+ {[%clk 0:01:08]} 1-0


[Site "https://www.chess.com"]

[Event "Titled Tuesday Blitz March 21 Early 2023"]
[White "Averjanov, Alexey"]
[Black "Mazurkiewicz, Michal"]
[WhiteFideId "14109867"]
[BlackFideId "1124943"]
[WhiteElo "2805"]
[BlackElo "2054"]
[Result "1-0"]
[Round "02"]
[TimeControl "180+2"]
[Date "2023.03.21"]
[WhiteClock "0:00:38"]
[BlackClock "0:00:01"]

1. d4 {[%clk 0:03:00]}  Nf6 {[%clk 0:02:59]} 2. c4 {[%clk 0:02:53]}  e5 {[%clk 0:02:59]} 3. dxe5 {[%clk 0:02:53]}  Ng4 {[%clk 0:02:58]} 4. b3 {[%clk 0:02:49]}  Nxe5 {[%clk 0:02:56]} 5. Bb2 {[%clk 0:02:46]}  Bb4+ {[%clk 0:02:56]} 6. Nd2 {[%clk 0:02:45]}  Nbc6 {[%clk 0:02:55]} 7. e3 {[%clk 0:02:43]}  a5 {[%clk 0:02:50]} 8. a3 {[%clk 0:02:40]}  Bc5 {[%clk 0:02:50]} 9. Ngf3 {[%clk 0:02:40]}  Qe7 {[%clk 0:02:50]} 10. Be2 {[%clk 0:02:36]}  O-O {[%clk 0:02:50]} 11. O-O {[%clk 0:02:36]}  d6 {[%clk 0:02:50]} 12. Qc2 {[%clk 0:02:29]}  f6 {[%clk 0:02:32]} 13. Nd4 {[%clk 0:02:25]}  Ba7 {[%clk 0:02:23]} 14. Rad1 {[%clk 0:02:24]}  Qf7 {[%clk 0:02:22]} 15. Ne4 {[%clk 0:02:18]}  Re8 {[%clk 0:02:17]} 16. Nc3 {[%clk 0:02:12]}  Nxd4 {[%clk 0:02:14]} 17. exd4 {[%clk 0:02:11]}  Nc6 {[%clk 0:02:15]} 18. Nd5 {[%clk 0:02:02]}  Be6 {[%clk 0:02:15]} 19. Bf3 {[%clk 0:02:01]}  Kh8 {[%clk 0:02:09]} 20. Rfe1 {[%clk 0:01:52]}  Bxd5 {[%clk 0:02:01]} 21. Bxd5 {[%clk 0:01:51]}  Qg6 {[%clk 0:01:55]} 22. Qd2 {[%clk 0:01:37]}  Rxe1+ {[%clk 0:01:50]} 23. Rxe1 {[%clk 0:01:38]}  Re8 {[%clk 0:01:50]} 24. Bxc6 {[%clk 0:01:24]}  bxc6 {[%clk 0:01:50]} 25. Qxa5 {[%clk 0:01:21]}  Bb6 {[%clk 0:01:49]} 26. Qd2 {[%clk 0:01:16]}  Rxe1+ {[%clk 0:01:43]} 27. Qxe1 {[%clk 0:01:15]}  h6 {[%clk 0:01:44]} 28. Qd1 {[%clk 0:01:10]}  Qe4 {[%clk 0:01:38]} 29. Bc3 {[%clk 0:01:09]}  Qe6 {[%clk 0:00:56]} 30. Qd3 {[%clk 0:01:05]}  f5 {[%clk 0:00:04]} 31. b4 {[%clk 0:00:44]}  c5 {[%clk 0:00:01]} 32. d5 {[%clk 0:00:38]} 1-0


[Site "https://www.chess.com"]